Cogmind - Beta 16.1 @@@ ROGUE MODE // 2026.02.10 @ 21:06:41 Player: Rune Result: Destroyed by G-50 Soldier with Heavy Laser Performance ------------- Evolutions (2) 1000 Regions Visited (4) 800 Robots Destroyed (22) 110 Value Destroyed (576) 576 Prototype IDs (0) 0 Alien Tech Used (0) 0 Bonus (0) 0 TOTAL SCORE: 2486 Bonus ------- None Cogmind --------- Core Integrity 0/550 Matter 300/300 Energy 100/100 System Corruption 0% Temperature Cool (9) Movement Core (100) Ox1 Location -8/Materials Parts ------- > --- POWER (1) -------- (None) > --- PROPULSION (2) --- (None) > --- UTILITY (4) ------ Small Storage Unit > --- WEAPON (4) ------- (None) > --- INVENTORY (8) ---- Improved Ion Engine Heat Sink Advanced Weight Redist. System Peak State ------------ > --- POWER ------------ Deuterium Engine > --- PROPULSION ------- Advanced Treads Advanced Treads > --- UTILITY ---------- Small Storage Unit Medium Matter Pod Actuator Array Improved Light Armor Plating > --- WEAPON ----------- Medium Laser Light Assault Rifle Welding Torch Plasma Cutter > --- INVENTORY -------- Improved Ion Engine Improved Ion Engine Heat Sink Advanced Weight Redist. System Beam Rifle [Rating: 23] Favorites ----------- Power Improved Ion Engine Engine Improved Ion Engine Propulsion Advanced Treads Treads Advanced Treads Leg Aluminum Leg Utility Small Storage Unit Device Actuator Array Storage Small Storage Unit Protection Improved Light Armor Plating Weapon Medium Laser Energy Gun Medium Laser Energy Cannon Beam Cannon Ballistic Gun Light Assault Rifle Special Weapon Welding Torch Build | -11 -10 -9 -9 -8 ------- Run | Yrd Mat Mat Min Mat Slots Evolved 4 | . . 2 . 2 Power . | . . . . . Propulsion . | . . . . . Utility 2 | . . 1 . 1 Weapon 2 | . . 1 . 1 Parts Attached 18 | 6 2 5 . 5 Power 3 | 1 . 1 . 1 Engine 3 | 1 . 1 . 1 Core . | . . . . . Reactor . | . . . . . Propulsion 4 | 2 . 2 . . Treads 2 | . . 2 . . Leg 2 | 2 . . . . Wheel . | . . . . . Hover . | . . . . . Flight . | . . . . . Utility 4 | 1 1 1 . 1 Device 1 | . . 1 . . Storage 2 | 1 1 . . . Processor . | . . . . . Hackware . | . . . . . Protection 1 | . . . . 1 Artifact . | . . . . . Weapon 7 | 2 1 1 . 3 Energy Gun 2 | 1 . . . 1 Energy Cannon 1 | . 1 . . . Ballistic Gun 2 | 1 . 1 . . Ballistic Cannon . | . . . . . Launcher . | . . . . . Special Weapon 2 | . . . . 2 Impact Weapon . | . . . . . Slashing Weapon . | . . . . . Piercing Weapon . | . . . . . Special Melee Weapon . | . . . . . Unidentified Prototypes . | . . . . . Parts Lost 15 | . 3 1 . 11 Power 2 | . 1 . . 1 Propulsion 3 | . 1 . . 2 Utility 3 | . . . . 3 Weapon 7 | . 1 1 . 5 Highest Loss Streak 9 | . 3 1 . 9 To Critical Strikes . | . . . . . Average Backups 2 | . 1 3 3 3 Power . | . . . . 1 Propulsion . | . . . 1 . Utility 1 | . . . 1 1 Weapon . | . 1 1 . . Tool/Special . | . . . . . Unused Backups 3 | . . . . 3 Power 1 | . . . . 1 Propulsion . | . . . . . Utility 2 | . . . . 2 Weapon . | . . . . . Tool/Special . | . . . . . Average Slot Usage (%) 85 | . 87 69 88 87 Engine 9 | . 13 6 11 8 Treads 12 | . . 17 22 16 Leg 7 | . 27 2 . . Device 6 | . . 3 11 8 Storage 18 | . 17 22 22 17 Protection 3 | . . . . 7 Energy Gun 8 | . 6 5 11 10 Energy Cannon 1 | . 7 . . . Ballistic Gun 10 | . 14 11 11 7 Special Weapon 4 | . . . . 9 Peak Build Rating 23 | 6 7 15 15 23 Average Rating 13 | 4 6 10 15 19 On Entrance 8 | . 6 4 15 15 Avg Prop Armor Cover (%) . | . . . . . Naked Turns . | . . . . . Heaviest Build 31 | 14 17 22 22 31 Greatest Support 44 | 20 20 44 44 44 Greatest Overweight (x) 3 | . . 2 . 3 Average Overweight (x) . | . . . . . Largest Inventory Capacity 8 | 8 8 8 8 8 Average Capacity 7 | 6 8 8 8 8 Most Carried 7 | 4 4 7 3 6 Average Carried 2 | 1 1 3 3 3 Final Capacity 8 | 8 8 8 8 8 Final Carried 3 | 1 3 3 3 3 Class Distribution -------------------- 61% | Mutant 38% | Tank Dominant Class ---------------- Mutant | -10/Materials Mutant | -9/Materials Mutant | -9/Mines Tank | -8/Materials Resources | -11 -10 -9 -9 -8 ----------- Run | Yrd Mat Mat Min Mat Matter Collected 645 | 189 183 75 . 198 Remotely . | . . . . . Salvage Created 764 | . 240 75 . 449 Parts 38 | . 9 3 . 26 Haulers Intercepted 1 | . . . . 1 Recyclers Shooed 2 | . 1 . . 1 Parts Field Recycled . | . . . . . Retrieved Matter . | . . . . . Parts Self-Destructed . | . . . . . Prevented . | . . . . . Parts Restored . | . . . . . Kills | -11 -10 -9 -9 -8 ------- Run | Yrd Mat Mat Min Mat Combat Hostiles Destroyed 15 | . 5 1 . 9 Melee 1 | . . . . 1 Guns 11 | . 2 1 . 8 Cannons 2 | . 2 . . . AOE 1 | . 1 . . . Classes Destroyed 8 | . 3 1 . 4 Worker 1 | . . . . 1 Tunneler 1 | . 1 . . . Hauler 1 | . . . . 1 Recycler 1 | . . . . 1 Watcher 3 | . 1 1 . 1 Swarmer 5 | . . . . 5 Grunt 6 | . 5 . . 1 Sentry 4 | . . 1 . 3 Best Kill Streak 5 | . 3 1 . 5 Combat Bots Only 4 | . 2 1 . 4 Max Kills in Single Turn 2 | . 2 1 . 2 Gunslinging 1 | . . . . 1 Exploded 1 | . 1 . . . Melee 1 | . . . . 1 Uniques/NPCs Destroyed . | . . . . . Combat | -11 -10 -9 -9 -8 -------- Run | Yrd Mat Mat Min Mat Hostile Shots Fired 231 | . 23 14 . 194 Missed 65 | . 9 5 . 51 Hits 166 | . 14 9 . 143 Projectile 166 | . 14 9 . 143 Critical Strikes 5 | . 1 . . 4 Damage Taken 2113 | . 457 126 . 1530 Core 636 | . 46 27 . 563 Absorbed by Shields . | . . . . . Core Remaining (%) 91 | 100 81 . 93 . Volleys Fired 58 | . 19 6 . 33 Largest 4 | . 2 3 . 4 Hottest 126 | . 80 90 . 126 Shots Fired 132 | . 38 10 . 84 Gun 115 | . 27 10 . 78 Cannon 11 | . 11 . . . Launcher . | . . . . . Special 6 | . . . . 6 Kinetic 59 | . 19 7 . 33 Thermal 73 | . 19 3 . 51 Explosive . | . . . . . Electromagnetic . | . . . . . Robot Hit Streak 17 | . 11 3 . 17 Robot Miss Streak 7 | . 4 1 . 7 Penetration Max . | . . . . . Secondary Targets 1 | . . . . 1 Max Gunslinging Chain 1 | . . . . 1 Shots Hit Robots 83 | . 24 6 . 53 Core Hits 42 | . 12 3 . 27 Critical Kills . | . . . . . Critical Parts Destroyed . | . . . . . Critical Strikes 3 | . 1 . . 2 Burn 3 | . 1 . . 2 Melee Attacks . | . . . . . Impact . | . . . . . Slashing . | . . . . . Piercing . | . . . . . Sneak Attacks . | . . . . . Combat Hostiles . | . . . . . Follow-up Attacks . | . . . . . Damage Inflicted 1284 | . 567 75 . 642 Guns 870 | . 221 75 . 574 Cannons 105 | . 105 . . . Explosions 239 | . 239 . . . Melee . | . . . . . Ramming 56 | . 2 . . 54 Kinetic 387 | . 149 49 . 189 Thermal 841 | . 416 26 . 399 Explosive . | . . . . . Electromagnetic . | . . . . . Impact . | . . . . . Slashing . | . . . . . Piercing . | . . . . . Highest Corruption . | . . . . . Average Corruption . | . . . . . Corruption Purged . | . . . . . Corruption Blocked . | . . . . . Overload Shots . | . . . . . Overflow Damage 127 | . 127 . . . Projectiles 1 | . 1 . . . Explosions 126 | . 126 . . . Melee . | . . . . . Knockbacks . | . . . . . Impact . | . . . . . Kinetic . | . . . . . Secondary . | . . . . . Self-Inflicted Damage 173 | . 165 . . 8 Shots 2 | . 2 . . . Rammed 18 | . . . . 18 Targets Rammed 20 | . 1 . . 19 Kicked 1 | . 1 . . . Crushed 1 | . . . . 1 Highest Temperature 547 | . 127 59 . 547 Average Temperature 110 | . 35 26 . 156 Received Heat Transfer 471 | . 120 45 . 306 Effects 14 | . . . . 14 Shutdowns 3 | . . . . 3 Energy Bleed 2 | . . . . 2 Interference 5 | . . . . 5 Matter Decay 1 | . . . . 1 Damage (minor) 2 | . . . . 2 Damage (core) 1 | . . . . 1 Siege Activations . | . . . . . Martial Activations . | . . . . . Shielding Activations . | . . . . . Robots Disrupted . | . . . . . Combat Hostiles . | . . . . . Robots Corrupted . | . . . . . Combat Hostiles . | . . . . . Parts Fried . | . . . . . Impact Corruptions . | . . . . . Robots Melted . | . . . . . Combat Hostiles . | . . . . . Parts Melted 4 | . 1 1 . 2 Heat Transferred 2025 | . 668 74 . 1283 Parts Sabotaged . | . . . . . Parts Stolen . | . . . . . Parts Stripped . | . . . . . Power Chain Reactions . | . . . . . Alert | -11 -10 -9 -9 -8 ------- Run | Yrd Mat Mat Min Mat Maximum Alert Level . | . . . . . Low Security (%) 100 | 100 100 100 100 100 Level 1 . | . . . . . Level 2 . | . . . . . Level 3 . | . . . . . Level 4 . | . . . . . Level 5 . | . . . . . High Security . | . . . . . Max Security . | . . . . . Peak Influence 127 | . 82 30 2 127 Initial 29 | . . 29 2 . Average 21 | . 11 15 . 36 Influence Increases 543 | . 201 37 . 305 Destroy 0b10 Robot/C 300 | . 100 20 . 180 Destroy 0b10 Robot/NC 35 | . 10 5 . 20 Destroy Leader 88 | . 32 12 . 44 Successful Hack 16 | . . . . 16 Disable Machine 45 | . 30 . . 15 Destroy Structure 29 | . 29 . . . Lose Combat Pursuer 30 | . . . . 30 Influence Decreases 543 | . 129 102 7 305 Entered New Map 48 | . . 43 5 . Time Decay 359 | . 99 59 2 199 Lost Part 136 | . 30 . . 106 Squads Dispatched 1 | . 1 . . . Investigation . | . . . . . Extermination . | . . . . . Reinforcement 1 | . 1 . . . Assault . | . . . . . Garrison . | . . . . . Intercept . | . . . . . Searches Triggered . | . . . . . Construction Impeded . | . . . . . Haulers Reinforced . | . . . . . Active Scanning Responses . | . . . . . Cargo Convoy Interrupts . | . . . . . Stealth | -11 -10 -9 -9 -8 --------- Run | Yrd Mat Mat Min Mat Distress Signals 6 | . 2 . . 4 Communications Jammed . | . . . . . Distress Signals . | . . . . . Times Spotted 36 | . 11 3 . 22 Peak Tracking Total 7 | . 2 2 . 7 Tactical Retreats 2 | . . . . 2 Traps | -11 -10 -9 -9 -8 ------- Run | Yrd Mat Mat Min Mat Traps Triggered . | . . . . . Indirectly . | . . . . . Trap Hack Attempts . | . . . . . Triggered . | . . . . . Disarmed . | . . . . . Reprogrammed . | . . . . . Reused . | . . . . . Traps Extracted . | . . . . . Installed . | . . . . . Triggered . | . . . . . Machines | -11 -10 -9 -9 -8 ---------- Run | Yrd Mat Mat Min Mat Machines Disabled 3 | . 2 . . 1 Max in Single Turn 2 | . 2 . . 1 Machines Repaired . | . . . . . Machines Dismantled 1 | . . . . 1 Machines Sabotaged . | . . . . . Overloaded Fab Kills . | . . . . . Hacking | -11 -10 -9 -9 -8 --------- Run | Yrd Mat Mat Min Mat Machines Accessed 2 | . 1 . . 1 Terminals 2 | . 1 . . 1 Fabricators . | . . . . . Repair Stations . | . . . . . Recycling Units . | . . . . . Scanalyzers . | . . . . . Garrison Access . | . . . . . Total Hacks 3 | . 2 . . 1 Successful 1 | . . . . 1 Failed 2 | . 2 . . . Catastrophic . | . . . . . Database Lockouts . | . . . . . Manual . | . . . . . Terminals 3 | . 2 . . 1 Fabricators . | . . . . . Repair Stations . | . . . . . Recycling Units . | . . . . . Scanalyzers . | . . . . . Garrison Access . | . . . . . Terminal Hacks 1 | . . . . 1 Record 1 | . . . . 1 Fabricator Hacks . | . . . . . Repair Station Hacks . | . . . . . Recycling Unit Hacks . | . . . . . Scanalyzer . | . . . . . Garrison Access Hacks . | . . . . . Unauthorized Hacks . | . . . . . Terminals . | . . . . . Fabricators . | . . . . . Repair Stations . | . . . . . Recycling Units . | . . . . . Scanalyzers . | . . . . . Garrison Access . | . . . . . Data Cores Recovered . | . . . . . Used . | . . . . . Hacking Detections 1 | . 1 . . . Full Trace Events . | . . . . . Feedback Events . | . . . . . Feedback Blocked . | . . . . . Robot Schematics Acquired . | . . . . . Robots Built . | . . . . . Authchips . | . . . . . Time . | . . . . . Total Robot Build Rating . | . . . . . Part Schematics Acquired . | . . . . . Parts Built . | . . . . . Authchips . | . . . . . Time . | . . . . . Total Part Build Rating . | . . . . . Part Studies Acquired . | . . . . . Parts Repaired . | . . . . . Time . | . . . . . Parts Recycled . | . . . . . Recycled Matter . | . . . . . Retrieved Matter . | . . . . . Retrieved Components . | . . . . . Parts Scanalyzed . | . . . . . Part Schematics Acquired . | . . . . . Parts Damaged . | . . . . . Bothacking | -11 -10 -9 -9 -8 ------------ Run | Yrd Mat Mat Min Mat Used RIF Installer . | . . . . . Robots Hacked . | . . . . . Non-combat . | . . . . . Combat . | . . . . . Robot Hacks Applied . | . . . . . Relay Couplers Released . | . . . . . Fabnet Peak Effective % . | . . . . . Robots Rewired . | . . . . . Allies Hacked . | . . . . . Hacks Repelled . | . . . . . Allies | -11 -10 -9 -9 -8 -------- Run | Yrd Mat Mat Min Mat Total Allies . | . . . . . Largest Group . | . . . . . Highest-Rated Group . | . . . . . Highest-Rated Ally . | . . . . . Total Orders . | . . . . . Ally Attacks . | . . . . . Total Damage . | . . . . . Kills . | . . . . . Allies Corrupted . | . . . . . Allies Melted . | . . . . . Intel | -11 -10 -9 -9 -8 ------- Run | Yrd Mat Mat Min Mat Active Infowar (turns) . | . . . . . Robot Analysis Total . | . . . . . Derelict Logs Recovered . | . . . . . Drone Launches . | . . . . . Drone Recoveries . | . . . . . Exploration | -11 -10 -9 -9 -8 ------------- Run | Yrd Mat Mat Min Mat Turns Passed 1324 | 64 354 137 151 618 Spaces Moved 773 | 55 238 80 105 295 Core 39 | 20 . 2 . 17 Treads 445 | . . 62 105 278 Legs 289 | 35 238 16 . . Wheels . | . . . . . Hover . | . . . . . Flight . | . . . . . Fastest Speed 50 | 50 120 120 145 100 Average Speed 134 | 94 120 140 145 148 Slowest Speed 225 | 120 120 150 145 225 Overloaded Moves . | . . . . . Propulsion Burnouts . | . . . . . Robots Hopped . | . . . . . Potential Cave-ins . | . . . . . Cave-ins Triggered . | . . . . . Exploration Rate (%) 21 | 3 38 6 35 27 Regions Visited 4 Branch Regions 1 Pre-discovered Areas . | . . . . . Known Exits Taken . | . . . . . Unknown Exits Taken 4 | 1 1 1 1 . Scrap Searched . | . . . . . Spaces Dug . | . . . . . Terrain Destroyed 40 | . 40 . . . Melee . | . . . . . Projectile . | . . . . . AOE 40 | . 40 . . . Terrain Rammed . | . . . . . Walls Destroyed . | . . . . . Machines Disabled . | . . . . . Actions | -11 -10 -9 -9 -8 --------- Run | Yrd Mat Mat Min Mat Total 924 | 67 268 97 104 388 Wait 28 | . 5 . . 23 Move 769 | 54 237 79 104 295 Hop . | . . . . . Pick Up 21 | 7 3 5 . 6 Fast Attach . | . . . . . Attach 19 | 6 2 6 . 5 Detach 3 | . 1 1 . 1 Swap . | . . . . . Drop 2 | . . . . 2 Fire 58 | . 19 6 . 33 Melee . | . . . . . Ram 6 | . . . . 6 Kick 1 | . 1 . . . Crush 13 | . . . . 13 Escape Stasis . | . . . . . Rewire . | . . . . . Trap . | . . . . . Miscellaneous 4 | . . . . 4 Route ------- -11/Scrapyard -10/Materials (discovered 2 exits: [*Mat] / [*Min]) -9/Materials -9/Mines (discovered 2 exits: *Mat / [*Zio]) -8/Materials History --------- Turn | Location | Event 8 | -11/Scrapyard | Discovered new exit (range 16) 65 | -11/Scrapyard | Entered Materials 291 | -10/Materials | Discovered new exit (range 15) 304 | -10/Materials | Build established: Mutant 405 | -10/Materials | Discovered new exit (range 7) 419 | -10/Materials | Entered another Materials area 419 | -9/Materials | Evolved 2 slots: Utility x1, Weapon x1 432 | -9/Materials | Lost 3 parts (1p1n1w) 457 | -9/Materials | Discovered new exit (range 16) 556 | -9/Materials | Entered Mines 585 | -9/Mines | A Derelict revealed a hidden shortcut to a safe place 691 | -9/Mines | Discovered new exit (range 11) 707 | -9/Mines | Entered Materials 707 | -8/Materials | Evolved 2 slots: Utility x1, Weapon x1 1014 | -8/Materials | Build established: Tank 1309 | -8/Materials | Core integrity fell below 50% 1320 | -8/Materials | Core integrity fell below 20% 1325 | -8/Materials | Destroyed by G-50 Soldier with Heavy Laser Last Messages --------------- Crushed A-02 Transporter. A-02 Transporter destroyed. Lgt. Assault Rifle destroyed. Adv. Treads destroyed. S-10 Pest destroyed. Med. Laser destroyed. Slammed into S-10 Pest. Imp. Light Armor Plating destroyed. Slammed into S-10 Pest. Deuterium Engine destroyed. Slammed into S-10 Pest. Adv. Treads destroyed. Beam Rifle destroyed. Slammed into S-10 Pest. S-10 Pest destroyed. Actuator Array destroyed. Med. Matter Pod destroyed. Slammed into S-10 Pest. Slammed into G-47 Trooper. Slammed into G-50 Soldier. Map ----- +----------------------------------------------------+ | | | | | | | | | | | | | | | | | | | | | | | | | | | | | | | | | | | ?????????????????????????????????????????????????? | | ?????????????????????????????????????????????????? | | ?????????????????????????????????????????????????? | | ?????????????????????????????????????????????????? | | ?????????????????????????????????????????????????? | | ????????############################?????????????? | | ????? %% *=%g #?????????????? | | ????? %s=%%[g +?????????????? | | ????? s[@g""" #?????????????? | | ????????##+#############% """ #?????????????? | | ???????????????????????# % """ #?????????????? | | ???????????????????????# #?????????????? | | ???????????????????????# #?????????????? | | ???????????????????????# != #?????????????? | | ???????????????????????# !!=%=% #?????????????? | | ???????????????????????# ! == ! #########?????? | | ???????????????????????# =!! #?????? | | ???????????????????????# #?????? | | ???????????????????????+ #?????? | | ???????????????????????# #?##### | | ???????????????????????# [ #? | | ???????????????????????################# #= | | ???????????????????????????????# # # | | ???????????????????????????????# + + | | ???????????????????????????????# # # "Y" | | ???????????????????????????????#######?# # """ | | ??????????????????????????????????????## ####### | | ??????????????????????????????????????# | | ??????????????????????????????????????# | | ??????????????????????????????????????+ === | | ??????????????????????????????????????# === | | ??????????????????????????????????????# ]| === | | ??????????????????????????????????????# ] | +----------------------------------------------------+ Best States ------------- Heat Dissipation 31 Energy Generation 14 Energy Capacity 275 Matter Stores 400 Matter Capacity 400 Sight Range 16 Terrain Scan Density 10 Armor Coverage 150 Evasion (%) 55 Recoil Reduction 2 Item Schematics ----------------- None Robot Schematics ------------------ None Fabricated ------------ Nothing Repaired ---------- Nothing Studied --------- None Alien Tech Used ----------------- None Achievements -------------- Overwhelming Challenges ------------ None Game ------ Seed GravjetArmageddonBay Manual? 0 Play Time 00:13:12 Cumulative 14.6 hours Start 2026.02.10 @ 20:52:15 End 2026.02.10 @ 21:06:41 Sessions 1 Manual Loads 0 Difficulty Rogue Special Mode None Game No. 48 Rogue 48 Adventurer 0 Explorer 0 Win Type - Total 0 Types 0/0/0/0/0/0/0/0/0/0 Lore% 5 Gallery% 13 Achievement% 11 Wizard Run 0 Options --------- Layout 1 ASCII 0 Keyboard 1 Movement Numpad Keybinds 0 Fullscreen 1 Font 32/SmallcapsGlow Map View 50x35 Zoom Use 0% Tactical HUD 0 Map Filters NONE Filters NONE Steam 1 RUN: 28a238a5-9964-4631-8405-beae587f8348